[Event "*** Titled Tuesday 3|2 Blitz"]
[Site "Chess.com"]
[Date "2017.06.06"]
[Round "10"]
[White "Fins0905"]
[Black "djano"]
[Result "0-1"]
[WhiteElo "2378"]
[BlackElo "2346"]
[TimeControl "180+2"]
[EndTime "16:03:38 PDT"]
[Termination "djano won by resignation"]

1. d4 {[%clk 0:03:02]} 1... e6 {[%clk 0:03:00.3]} 2. c4 {[%clk 0:03:02.3]} 2...
d5 {[%clk 0:02:59.8]} 3. Nc3 {[%clk 0:03:02.9]} 3... Nf6 {[%clk 0:02:59.4]} 4.
cxd5 {[%clk 0:03:03.9]} 4... Nxd5 {[%clk 0:03:01.3]} 5. e4 {[%clk 0:02:59.6]}
5... Nxc3 {[%clk 0:03:01.9]} 6. bxc3 {[%clk 0:03:01.5]} 6... c5 {[%clk
0:03:03.5]} 7. a3 {[%clk 0:03:01.4]} 7... cxd4 {[%clk 0:03:03.4]} 8. cxd4 {[%clk
0:03:02.4]} 8... e5 {[%clk 0:03:01.7]} 9. d5 {[%clk 0:02:51.2]} 9... Bc5 {[%clk
0:02:59.9]} 10. Nf3 {[%clk 0:02:47.1]} 10... O-O {[%clk 0:03:00.1]} 11. Be2
{[%clk 0:02:42.7]} 11... Bg4 {[%clk 0:02:35.4]} 12. O-O {[%clk 0:02:39.4]} 12...
Nd7 {[%clk 0:02:32.7]} 13. Rb1 {[%clk 0:02:39.2]} 13... b6 {[%clk 0:02:31.2]}
14. a4 {[%clk 0:02:31.3]} 14... h6 {[%clk 0:02:26.4]} 15. Nd2 {[%clk 0:02:15.5]}
15... Bxe2 {[%clk 0:02:24.7]} 16. Qxe2 {[%clk 0:02:17.4]} 16... Rc8 {[%clk
0:02:17.7]} 17. Qa6 {[%clk 0:02:05.8]} 17... Rc7 {[%clk 0:02:01.7]} 18. Bb2
{[%clk 0:02:00.5]} 18... Qh4 {[%clk 0:01:59.1]} 19. Rbe1 {[%clk 0:01:41.5]}
19... Rfc8 {[%clk 0:01:49.9]} 20. a5 {[%clk 0:01:18.9]} 20... Bd6 {[%clk
0:01:20.7]} 21. axb6 {[%clk 0:01:05.5]} 21... axb6 {[%clk 0:01:22.6]} 22. Ba3
{[%clk 0:00:42.4]} 22... Nb8 {[%clk 0:00:53]} 23. Qa4 {[%clk 0:00:42.3]} 23...
Bxa3 {[%clk 0:00:37.8]} 24. Qxa3 {[%clk 0:00:42.9]} 24... Rc2 {[%clk 0:00:39.4]}
25. Nf3 {[%clk 0:00:31.2]} 25... Qf4 {[%clk 0:00:40.2]} 26. Qe7 {[%clk
0:00:22.3]} 26... f6 {[%clk 0:00:34.7]} 27. d6 {[%clk 0:00:21.4]} 27... Qg4
{[%clk 0:00:30.4]} 28. Qb7 {[%clk 0:00:14.1]} 28... Qd7 {[%clk 0:00:28.9]} 29.
Qxb6 {[%clk 0:00:09.7]} 29... Kh8 {[%clk 0:00:27.2]} 30. Rd1 {[%clk 0:00:09.2]}
30... Re2 {[%clk 0:00:18.5]} 31. Rc1 {[%clk 0:00:06.7]} 31... Nc6 {[%clk
0:00:16]} 32. Rfd1 {[%clk 0:00:04.9]} 32... Rxe4 {[%clk 0:00:16.6]} 33. g3
{[%clk 0:00:05.5]} 33... Rb4 {[%clk 0:00:16.2]} 34. Qc5 {[%clk 0:00:04.7]} 34...
Rb3 {[%clk 0:00:16.8]} 35. Qd5 {[%clk 0:00:05.7]} 35... Rb6 {[%clk 0:00:14.2]}
36. Nh4 {[%clk 0:00:06.4]} 36... Qg4 {[%clk 0:00:12.3]} 37. f3 {[%clk
0:00:05.7]} 37... Qd7 {[%clk 0:00:12.5]} 38. Ng6+ {[%clk 0:00:06]} 38... Kh7
{[%clk 0:00:13.2]} 39. Qd3 {[%clk 0:00:06.1]} 39... Kg8 {[%clk 0:00:14.4]} 40.
Nh4 {[%clk 0:00:05.9]} 40... Nd4 {[%clk 0:00:14.2]} 41. Rxc8+ {[%clk 0:00:05.7]}
41... Qxc8 {[%clk 0:00:16.1]} 42. f4 {[%clk 0:00:04.5]} 42... Rxd6 {[%clk
0:00:16.7]} 43. fxe5 {[%clk 0:00:05.8]} 43... fxe5 {[%clk 0:00:18]} 44. Nf3
{[%clk 0:00:05.9]} 44... Qc5 {[%clk 0:00:17.2]} 45. Kg2 {[%clk 0:00:06.7]} 45...
Qd5 {[%clk 0:00:17.2]} 46. Qe3 {[%clk 0:00:03.8]} 46... Rf6 {[%clk 0:00:15.6]}
47. Rxd4 {[%clk 0:00:02.9]} 47... exd4 {[%clk 0:00:14.8]} 48. Qd3 {[%clk
0:00:03.6]} 48... Qf5 {[%clk 0:00:14.2]} 49. Qb3+ {[%clk 0:00:03.3]} 49... Kh8
{[%clk 0:00:14.3]} 50. h3 {[%clk 0:00:03]} 50... Qe4 {[%clk 0:00:14.3]} 51. Qa3
{[%clk 0:00:03.3]} 51... d3 {[%clk 0:00:13.9]} 52. Qa8+ {[%clk 0:00:02.9]} 52...
Qxa8 {[%clk 0:00:12.5]} 0-1

[Event "*** Titled Tuesday 3|2 Blitz"]
[Site "Chess.com"]
[Date "2017.06.06"]
[Round "10"]
[White "northridgehawk"]
[Black "Pierrebl"]
[Result "0-1"]
[WhiteElo "2125"]
[BlackElo "2542"]
[TimeControl "180+2"]
[EndTime "16:03:52 PDT"]
[Termination "Pierrebl won by resignation"]

1. e4 {[%clk 0:03:02]} 1... c5 {[%clk 0:03:01]} 2. Nf3 {[%clk 0:03:02.5]} 2...
Nc6 {[%clk 0:03:01.5]} 3. Bb5 {[%clk 0:03:02.8]} 3... g6 {[%clk 0:03:02.2]} 4.
O-O {[%clk 0:03:03]} 4... Bg7 {[%clk 0:03:03.6]} 5. Nc3 {[%clk 0:03:02.7]} 5...
Nf6 {[%clk 0:03:02.9]} 6. e5 {[%clk 0:03:01]} 6... Ng4 {[%clk 0:03:03.7]} 7.
Bxc6 {[%clk 0:03:01.7]} 7... dxc6 {[%clk 0:03:01.5]} 8. Re1 {[%clk 0:03:02.9]}
8... O-O {[%clk 0:03:02.3]} 9. h3 {[%clk 0:03:03.3]} 9... Nh6 {[%clk 0:03:03.7]}
10. d3 {[%clk 0:03:04.7]} 10... Nf5 {[%clk 0:03:04.2]} 11. Ne4 {[%clk
0:03:03.7]} 11... b6 {[%clk 0:03:04.4]} 12. Bg5 {[%clk 0:03:03.4]} 12... h6
{[%clk 0:03:03.9]} 13. Bf4 {[%clk 0:03:03.1]} 13... Nd4 {[%clk 0:03:01.4]} 14.
Nxd4 {[%clk 0:02:57.6]} 14... Qxd4 {[%clk 0:02:57.6]} 15. c3 {[%clk 0:02:42.9]}
15... Qd5 {[%clk 0:02:58]} 16. Qd2 {[%clk 0:02:43.1]} 16... g5 {[%clk
0:02:54.8]} 17. Bg3 {[%clk 0:02:43.1]} 17... Bf5 {[%clk 0:02:54.8]} 18. Rad1
{[%clk 0:02:38.4]} 18... Rad8 {[%clk 0:02:51.8]} 19. Qe2 {[%clk 0:02:37.9]}
19... Qxa2 {[%clk 0:02:43.3]} 20. Ra1 {[%clk 0:02:33.6]} 20... Qd5 {[%clk
0:02:40.4]} 21. Rxa7 {[%clk 0:02:33.1]} 21... Qxd3 {[%clk 0:02:40.2]} 22. Qxd3
{[%clk 0:02:33]} 22... Rxd3 {[%clk 0:02:41.6]} 23. Rxe7 {[%clk 0:02:32.6]} 23...
Bxe4 {[%clk 0:01:51.2]} 24. Rxe4 {[%clk 0:02:32.4]} 24... Rd1+ {[%clk
0:01:52.2]} 25. Kh2 {[%clk 0:02:32.4]} 25... Rd2 {[%clk 0:01:54.1]} 26. b4
{[%clk 0:02:26.3]} 26... cxb4 {[%clk 0:01:47.5]} 27. Rxb4 {[%clk 0:02:20.9]}
27... b5 {[%clk 0:01:23.9]} 28. Rc7 {[%clk 0:02:10.8]} 28... Re8 {[%clk
0:01:17.5]} 29. Rxc6 {[%clk 0:02:02.2]} 29... Bxe5 {[%clk 0:01:16.4]} 30. Rxb5
{[%clk 0:01:25.4]} 30... Bxg3+ {[%clk 0:01:13.6]} 31. Kxg3 {[%clk 0:01:23.8]}
31... Rd3+ {[%clk 0:01:11.7]} 32. f3 {[%clk 0:01:21.5]} 32... Kg7 {[%clk
0:01:09.6]} 33. Rf5 {[%clk 0:01:18.7]} 33... Re7 {[%clk 0:00:56.8]} 34. c4
{[%clk 0:01:18.8]} 34... Rd2 {[%clk 0:00:57.8]} 35. Kg4 {[%clk 0:00:51.6]} 35...
Rxg2+ {[%clk 0:00:53.4]} 36. Kh5 {[%clk 0:00:50.8]} 36... Rg3 {[%clk 0:00:51.2]}
37. h4 {[%clk 0:00:45.5]} 37... Rh3 {[%clk 0:00:51.8]} 38. Kg4 {[%clk
0:00:33.7]} 38... Rxh4+ {[%clk 0:00:53.1]} 39. Kg3 {[%clk 0:00:35.2]} 39... Rd4
{[%clk 0:00:52.6]} 40. Rd5 {[%clk 0:00:29.1]} 40... Rxd5 {[%clk 0:00:45.8]} 41.
cxd5 {[%clk 0:00:31]} 41... Re2 {[%clk 0:00:46.9]} 42. Kg4 {[%clk 0:00:21.5]}
42... Rd2 {[%clk 0:00:46.2]} 43. Rd6 {[%clk 0:00:22.9]} 43... Rd4+ {[%clk
0:00:44.2]} 44. Kg3 {[%clk 0:00:20.3]} 44... f6 {[%clk 0:00:44.9]} 45. Rd8
{[%clk 0:00:17.8]} 45... Kg6 {[%clk 0:00:45.6]} 46. Rh8 {[%clk 0:00:18.8]} 46...
Rxd5 {[%clk 0:00:45.1]} 47. Rg8+ {[%clk 0:00:20.1]} 47... Kf5 {[%clk 0:00:45.9]}
48. Rh8 {[%clk 0:00:21]} 48... Kg6 {[%clk 0:00:47.2]} 49. Rg8+ {[%clk
0:00:22.2]} 49... Kf7 {[%clk 0:00:48.6]} 50. Rh8 {[%clk 0:00:23.2]} 50... Kg7
{[%clk 0:00:50.1]} 51. Re8 {[%clk 0:00:23.8]} 51... Rd4 {[%clk 0:00:50.7]} 52.
Re7+ {[%clk 0:00:24.4]} 52... Kg6 {[%clk 0:00:52.1]} 53. Re8 {[%clk 0:00:26.3]}
53... h5 {[%clk 0:00:53.1]} 54. Rh8 {[%clk 0:00:26.9]} 54... h4+ {[%clk
0:00:53.6]} 55. Kg2 {[%clk 0:00:26.9]} 55... Rd2+ {[%clk 0:00:52.9]} 56. Kg1
{[%clk 0:00:24.4]} 56... Kf5 {[%clk 0:00:53.2]} 57. Rh6 {[%clk 0:00:25.5]} 57...
Ra2 {[%clk 0:00:44.2]} 58. Kf1 {[%clk 0:00:23.4]} 58... Ra6 {[%clk 0:00:41.7]}
59. Kf2 {[%clk 0:00:16.2]} 59... Kf4 {[%clk 0:00:40.1]} 60. Kg2 {[%clk
0:00:17.1]} 60... Ra2+ {[%clk 0:00:39.6]} 61. Kg1 {[%clk 0:00:18.3]} 61... f5
{[%clk 0:00:39.4]} 62. Rg6 {[%clk 0:00:18.2]} 62... Ra3 {[%clk 0:00:36.2]} 63.
Kg2 {[%clk 0:00:16.4]} 63... Rxf3 {[%clk 0:00:36.6]} 0-1

[Event "*** Titled Tuesday 3|2 Blitz"]
[Site "Chess.com"]
[Date "2017.06.06"]
[Round "10"]
[White "mwpchess"]
[Black "Margency"]
[Result "1-0"]
[WhiteElo "2495"]
[BlackElo "2538"]
[TimeControl "180+2"]
[EndTime "16:04:00 PDT"]
[Termination "mwpchess won by resignation"]

1. e4 {[%clk 0:03:02]} 1... d5 {[%clk 0:02:59.2]} 2. exd5 {[%clk 0:03:02.3]}
2... Qxd5 {[%clk 0:03:01.1]} 3. Nc3 {[%clk 0:03:03.2]} 3... Qd6 {[%clk 0:03:02]}
4. d4 {[%clk 0:03:03.8]} 4... Nf6 {[%clk 0:03:03.6]} 5. Nf3 {[%clk 0:03:04.4]}
5... c6 {[%clk 0:03:05.1]} 6. h3 {[%clk 0:03:04.9]} 6... Bf5 {[%clk 0:03:06.2]}
7. Ne5 {[%clk 0:03:05.3]} 7... Nbd7 {[%clk 0:03:04.7]} 8. Nc4 {[%clk 0:03:06]}
8... Qc7 {[%clk 0:03:05]} 9. Qf3 {[%clk 0:03:06.4]} 9... Bxc2 {[%clk 0:02:55.8]}
10. Bf4 {[%clk 0:03:04.8]} 10... Qd8 {[%clk 0:02:56]} 11. Qe2 {[%clk 0:03:05.3]}
11... Nb6 {[%clk 0:02:39.4]} 12. Nd6+ {[%clk 0:02:43]} 12... Kd7 {[%clk
0:02:27.1]} 13. Nxf7 {[%clk 0:02:43.3]} 13... Qe8 {[%clk 0:02:26.1]} 14. Ne5+
{[%clk 0:02:43.5]} 14... Kc8 {[%clk 0:02:25.2]} 15. Qxc2 {[%clk 0:02:44.1]}
15... e6 {[%clk 0:02:26.2]} 16. O-O-O {[%clk 0:02:43.3]} 16... Bb4 {[%clk
0:02:24]} 17. Nc4 {[%clk 0:02:37]} 17... Nfd5 {[%clk 0:02:14.2]} 18. Nd6+ {[%clk
0:02:30.4]} 18... Bxd6 {[%clk 0:02:14.5]} 19. Bxd6 {[%clk 0:02:31.1]} 19... a5
{[%clk 0:02:05.6]} 20. Be5 {[%clk 0:02:25.3]} 20... Nb4 {[%clk 0:02:02.5]} 21.
Qb3 {[%clk 0:02:16.1]} 21... N6d5 {[%clk 0:01:55.8]} 22. a3 {[%clk 0:01:53.4]}
22... Nxc3 {[%clk 0:01:46.3]} 23. bxc3 {[%clk 0:01:51]} 23... Nd5 {[%clk
0:01:44.6]} 24. c4 {[%clk 0:01:48.2]} 24... a4 {[%clk 0:01:40.9]} 25. Qg3 {[%clk
0:01:42.2]} 25... Ne7 {[%clk 0:01:40.9]} 26. Bd3 {[%clk 0:01:38.2]} 26... Rf8
{[%clk 0:01:35.3]} 27. Bd6 {[%clk 0:01:32.7]} 27... Rf7 {[%clk 0:01:33.5]} 28.
Rhe1 {[%clk 0:01:28.9]} 28... Qd7 {[%clk 0:01:27.9]} 29. Bc5 {[%clk 0:01:19.1]}
29... b6 {[%clk 0:01:19.5]} 30. Bxe7 {[%clk 0:01:11.9]} 30... Qxe7 {[%clk
0:01:18.8]} 31. Bc2 {[%clk 0:01:11.1]} 31... Ra5 {[%clk 0:01:06.8]} 32. Qe3
{[%clk 0:00:57.9]} 32... Rf6 {[%clk 0:01:03.2]} 33. f3 {[%clk 0:00:57.7]} 33...
Kb7 {[%clk 0:01:03]} 34. Kb2 {[%clk 0:00:53.6]} 34... h5 {[%clk 0:01:01.9]} 35.
Qc3 {[%clk 0:00:53.5]} 35... h4 {[%clk 0:01:00.8]} 36. Re5 {[%clk 0:00:53.2]}
36... Ra8 {[%clk 0:00:54.8]} 37. d5 {[%clk 0:00:50.5]} 37... cxd5 {[%clk
0:00:51.9]} 38. Rdxd5 {[%clk 0:00:46.4]} 38... Rc8 {[%clk 0:00:46.5]} 39. Rb5
{[%clk 0:00:45.8]} 39... Qc7 {[%clk 0:00:34.2]} 40. Be4+ {[%clk 0:00:43.5]}
40... Ka6 {[%clk 0:00:30.9]} 41. Rb4 {[%clk 0:00:34.6]} 41... Qd7 {[%clk
0:00:23.5]} 42. Bc2 {[%clk 0:00:34]} 42... Rf4 {[%clk 0:00:17.6]} 43. Rxa4+
{[%clk 0:00:32.7]} 43... Kb7 {[%clk 0:00:18.7]} 44. Rb4 {[%clk 0:00:33.1]} 44...
Kc7 {[%clk 0:00:12]} 45. Re4 {[%clk 0:00:31.6]} 45... Rf5 {[%clk 0:00:12]} 46.
Rd4 {[%clk 0:00:30.9]} 46... Qe7 {[%clk 0:00:12.6]} 47. Bxf5 {[%clk 0:00:26.5]}
47... exf5 {[%clk 0:00:14.5]} 48. Rd2 {[%clk 0:00:27]} 48... Kb7 {[%clk
0:00:14]} 49. Qd4 {[%clk 0:00:27.1]} 49... Rc7 {[%clk 0:00:13.9]} 50. Qd5+
{[%clk 0:00:27.4]} 50... Kc8 {[%clk 0:00:14.2]} 51. Rxb6 {[%clk 0:00:22.4]}
51... Qf6+ {[%clk 0:00:08.6]} 52. Rxf6 {[%clk 0:00:22.1]} 1-0

[Event "*** Titled Tuesday 3|2 Blitz"]
[Site "Chess.com"]
[Date "2017.06.06"]
[Round "10"]
[White "Keranke"]
[Black "GMHess"]
[Result "1-0"]
[WhiteElo "2679"]
[BlackElo "2630"]
[TimeControl "180+2"]
[EndTime "16:04:15 PDT"]
[Termination "Keranke won by resignation"]

1. d4 {[%clk 0:03:02]} 1... Nf6 {[%clk 0:02:59.1]} 2. Nf3 {[%clk 0:03:01.4]}
2... e6 {[%clk 0:02:57.2]} 3. Bf4 {[%clk 0:03:01.6]} 3... d5 {[%clk 0:02:53.8]}
4. e3 {[%clk 0:03:02.4]} 4... Be7 {[%clk 0:02:49]} 5. Bd3 {[%clk 0:03:02.1]}
5... Nh5 {[%clk 0:02:40.4]} 6. Be5 {[%clk 0:02:55.9]} 6... Nd7 {[%clk
0:02:25.8]} 7. Nbd2 {[%clk 0:02:53.2]} 7... Nxe5 {[%clk 0:02:21.7]} 8. dxe5
{[%clk 0:02:54.1]} 8... g6 {[%clk 0:02:22.7]} 9. c3 {[%clk 0:02:48]} 9... c6
{[%clk 0:02:17.2]} 10. Qc2 {[%clk 0:02:46.5]} 10... Qc7 {[%clk 0:02:15.9]} 11.
g4 {[%clk 0:02:42.8]} 11... Ng7 {[%clk 0:02:16.5]} 12. h4 {[%clk 0:02:44.7]}
12... Bd7 {[%clk 0:02:01.7]} 13. h5 {[%clk 0:02:45.6]} 13... O-O-O {[%clk
0:01:55.2]} 14. O-O-O {[%clk 0:02:46.1]} 14... Rdg8 {[%clk 0:01:48.3]} 15. c4
{[%clk 0:02:37.1]} 15... Kb8 {[%clk 0:01:36.8]} 16. Kb1 {[%clk 0:02:36.6]} 16...
Ne8 {[%clk 0:01:30.4]} 17. Rc1 {[%clk 0:02:24.3]} 17... gxh5 {[%clk 0:01:17.2]}
18. gxh5 {[%clk 0:02:23.3]} 18... h6 {[%clk 0:01:18.3]} 19. e4 {[%clk
0:02:16.5]} 19... d4 {[%clk 0:01:19.2]} 20. c5 {[%clk 0:02:15.9]} 20... Rg2
{[%clk 0:00:59.5]} 21. Nb3 {[%clk 0:02:08]} 21... Bg5 {[%clk 0:00:41.2]} 22.
Rcd1 {[%clk 0:01:33.7]} 22... Be3 {[%clk 0:00:36.7]} 23. Rhf1 {[%clk 0:01:28.2]}
23... Bf4 {[%clk 0:00:30.8]} 24. Nbxd4 {[%clk 0:01:27.3]} 24... Bxe5 {[%clk
0:00:31.5]} 25. Nxe5 {[%clk 0:01:27.7]} 25... Qxe5 {[%clk 0:00:33.4]} 26. Ne2
{[%clk 0:01:25.3]} 26... Bc8 {[%clk 0:00:24.1]} 27. Bc4 {[%clk 0:01:15.1]} 27...
Nf6 {[%clk 0:00:18.6]} 28. Ng3 {[%clk 0:01:05.2]} 28... Rg8 {[%clk 0:00:16.9]}
29. Qd3 {[%clk 0:00:55.8]} 29... R8xg3 {[%clk 0:00:15.3]} 30. Qd8 {[%clk
0:00:48.1]} 30... Rg8 {[%clk 0:00:14.4]} 31. Qe7 {[%clk 0:00:47.3]} 31... Nxe4
{[%clk 0:00:12.5]} 32. Qxf7 {[%clk 0:00:44.6]} 32... Qf5 {[%clk 0:00:10.6]} 33.
Qxf5 {[%clk 0:00:44.7]} 33... exf5 {[%clk 0:00:12.5]} 34. Bxg8 {[%clk
0:00:46.5]} 34... Rxg8 {[%clk 0:00:13.4]} 35. Rg1 {[%clk 0:00:44.5]} 35... Rh8
{[%clk 0:00:13.6]} 36. f3 {[%clk 0:00:42.8]} 36... Ng5 {[%clk 0:00:13.6]} 37.
Rd6 {[%clk 0:00:39.3]} 37... f4 {[%clk 0:00:10.4]} 38. Rf6 {[%clk 0:00:37]}
38... a5 {[%clk 0:00:05.9]} 39. Rf1 {[%clk 0:00:32.5]} 39... Ne6 {[%clk
0:00:04.8]} 40. Rg1 {[%clk 0:00:29.3]} 40... Nd4 {[%clk 0:00:05.4]} 41. Rf1
{[%clk 0:00:23.4]} 41... Bf5+ {[%clk 0:00:04.9]} 42. Kc1 {[%clk 0:00:25]} 42...
Ne2+ {[%clk 0:00:04.4]} 43. Kd2 {[%clk 0:00:25.5]} 43... Ng3 {[%clk 0:00:05.8]}
44. Re1 {[%clk 0:00:24.4]} 44... Bc8 {[%clk 0:00:04]} 45. Re5 {[%clk 0:00:22.3]}
45... Nxh5 {[%clk 0:00:05.4]} 46. Rxh5 {[%clk 0:00:23.1]} 46... Rd8+ {[%clk
0:00:05.7]} 47. Kc2 {[%clk 0:00:19.6]} 47... Rd4 {[%clk 0:00:03.5]} 48. Rf8
{[%clk 0:00:18.4]} 48... Kc7 {[%clk 0:00:02.8]} 49. Kc3 {[%clk 0:00:15.1]} 49...
Rd1 {[%clk 0:00:02.7]} 50. Rxh6 {[%clk 0:00:12.4]} 50... Rc1+ {[%clk 0:00:02.2]}
51. Kd4 {[%clk 0:00:13.9]} 51... Rd1+ {[%clk 0:00:02.8]} 52. Ke4 {[%clk
0:00:15.3]} 52... Rc1 {[%clk 0:00:03.3]} 53. Rh7+ {[%clk 0:00:15.1]} 53... Bd7
{[%clk 0:00:04.1]} 54. Rff7 {[%clk 0:00:16.5]} 54... Rd1 {[%clk 0:00:05.1]} 55.
Kxf4 {[%clk 0:00:17.9]} 55... Kd8 {[%clk 0:00:06.3]} 56. Rxd7+ {[%clk
0:00:15.2]} 56... Rxd7 {[%clk 0:00:08.2]} 57. Rxd7+ {[%clk 0:00:16.8]} 57...
Kxd7 {[%clk 0:00:10.1]} 58. Ke5 {[%clk 0:00:18.7]} 58... Ke7 {[%clk 0:00:11.2]}
59. f4 {[%clk 0:00:20.1]} 59... a4 {[%clk 0:00:12.8]} 60. f5 {[%clk 0:00:21.3]}
60... a3 {[%clk 0:00:14.7]} 61. bxa3 {[%clk 0:00:21.9]} 61... Kd7 {[%clk
0:00:15.7]} 62. Kf6 {[%clk 0:00:22.3]} 62... Ke8 {[%clk 0:00:16.7]} 63. Kg7
{[%clk 0:00:23.6]} 1-0

[Event "*** Titled Tuesday 3|2 Blitz"]
[Site "Chess.com"]
[Date "2017.06.06"]
[Round "10"]
[White "axvesik"]
[Black "Schemato"]
[Result "0-1"]
[WhiteElo "2313"]
[BlackElo "2305"]
[TimeControl "180+2"]
[EndTime "16:04:44 PDT"]
[Termination "Schemato won by resignation"]

1. e4 {[%clk 0:03:02]} 1... e6 {[%clk 0:02:56.5]} 2. d4 {[%clk 0:02:55.4]} 2...
d5 {[%clk 0:02:57.4]} 3. e5 {[%clk 0:02:56.6]} 3... b6 {[%clk 0:02:58]} 4. c3
{[%clk 0:02:56.7]} 4... Qd7 {[%clk 0:02:58.6]} 5. Nf3 {[%clk 0:02:57.7]} 5...
Ne7 {[%clk 0:02:59.7]} 6. Bd3 {[%clk 0:02:51.7]} 6... Ba6 {[%clk 0:02:59.5]} 7.
O-O {[%clk 0:02:46.8]} 7... Bxd3 {[%clk 0:02:59.5]} 8. Qxd3 {[%clk 0:02:47.8]}
8... c5 {[%clk 0:03:01.1]} 9. a3 {[%clk 0:02:48]} 9... c4 {[%clk 0:03:01.3]} 10.
Qe2 {[%clk 0:02:48]} 10... Nbc6 {[%clk 0:03:02.5]} 11. Nbd2 {[%clk 0:02:48.5]}
11... Na5 {[%clk 0:03:01.2]} 12. Ne1 {[%clk 0:02:46.1]} 12... h5 {[%clk
0:02:54.5]} 13. f4 {[%clk 0:02:46.8]} 13... g6 {[%clk 0:02:49.3]} 14. Nef3
{[%clk 0:02:47.5]} 14... Nf5 {[%clk 0:02:47.7]} 15. Ng5 {[%clk 0:02:47.6]} 15...
Be7 {[%clk 0:02:47]} 16. Ndf3 {[%clk 0:02:39.3]} 16... Nb3 {[%clk 0:02:40.8]}
17. Rb1 {[%clk 0:02:39.5]} 17... h4 {[%clk 0:02:14.9]} 18. Be3 {[%clk
0:02:37.1]} 18... Kf8 {[%clk 0:01:53.3]} 19. Bf2 {[%clk 0:02:35.6]} 19... Kg7
{[%clk 0:01:54.1]} 20. Qe1 {[%clk 0:02:26.6]} 20... Bxg5 {[%clk 0:01:47.7]} 21.
Nxg5 {[%clk 0:02:26.8]} 21... Rh5 {[%clk 0:01:45.2]} 22. Qe2 {[%clk 0:01:44.9]}
22... Qe7 {[%clk 0:01:30.4]} 23. Be3 {[%clk 0:01:38.9]} 23... Rah8 {[%clk
0:01:24.3]} 24. Kf2 {[%clk 0:01:31.8]} 24... Kf8 {[%clk 0:01:18.3]} 25. Rh1
{[%clk 0:01:28.2]} 25... Ke8 {[%clk 0:01:17]} 26. Rbg1 {[%clk 0:01:27.2]} 26...
Kd7 {[%clk 0:01:07.1]} 27. Qf3 {[%clk 0:01:23.5]} 27... Kc7 {[%clk 0:01:01.1]}
28. Ke1 {[%clk 0:01:24.1]} 28... Kb7 {[%clk 0:00:57.7]} 29. Bf2 {[%clk
0:01:24.9]} 29... Nc1 {[%clk 0:00:54.3]} 30. Kd2 {[%clk 0:01:09.2]} 30... Nd3
{[%clk 0:00:54.3]} 31. Be3 {[%clk 0:01:03.1]} 31... Rxg5 {[%clk 0:00:33]} 32.
fxg5 {[%clk 0:01:00.8]} 32... Nxb2 {[%clk 0:00:34]} 33. g4 {[%clk 0:01:00]}
33... hxg3 {[%clk 0:00:33.4]} 34. hxg3 {[%clk 0:01:00.3]} 34... Rf8 {[%clk
0:00:20.3]} 35. g4 {[%clk 0:01:00.7]} 35... Nxe3 {[%clk 0:00:19.3]} 36. Qxe3
{[%clk 0:00:57.9]} 36... Qxa3 {[%clk 0:00:20]} 37. Ra1 {[%clk 0:00:57.3]} 37...
Qe7 {[%clk 0:00:13.3]} 38. Rh7 {[%clk 0:00:55.9]} 38... Nd3 {[%clk 0:00:13.5]}
39. Qf3 {[%clk 0:00:54.7]} 39... Qxg5+ {[%clk 0:00:13.9]} 40. Ke2 {[%clk
0:00:53.3]} 40... Nf4+ {[%clk 0:00:13.4]} 41. Kd1 {[%clk 0:00:53.4]} 41... a5
{[%clk 0:00:13.1]} 42. Kc2 {[%clk 0:00:52.1]} 42... Ka6 {[%clk 0:00:12.9]} 43.
Rf1 {[%clk 0:00:52.7]} 43... Nd3 {[%clk 0:00:12.2]} 44. Rb1 {[%clk 0:00:50.2]}
44... a4 {[%clk 0:00:11.2]} 45. Rh2 {[%clk 0:00:32.4]} 45... b5 {[%clk
0:00:10.3]} 46. Rh7 {[%clk 0:00:30.4]} 46... a3 {[%clk 0:00:10.6]} 47. Ra1
{[%clk 0:00:31.1]} 47... Kb6 {[%clk 0:00:11]} 48. Rxf7 {[%clk 0:00:27.4]} 48...
Rxf7 {[%clk 0:00:11.1]} 49. Qxf7 {[%clk 0:00:28.3]} 49... Qxg4 {[%clk
0:00:12.2]} 50. Qf1 {[%clk 0:00:26.5]} 50... Qe4 {[%clk 0:00:10.9]} 51. Kd2
{[%clk 0:00:26.4]} 51... g5 {[%clk 0:00:10]} 52. Qe2 {[%clk 0:00:26.5]} 52...
Qf4+ {[%clk 0:00:10.6]} 53. Kc2 {[%clk 0:00:27.6]} 53... g4 {[%clk 0:00:11.1]}
54. Rxa3 {[%clk 0:00:26.8]} 54... g3 {[%clk 0:00:11.4]} 55. Ra1 {[%clk
0:00:26.7]} 55... Nf2 {[%clk 0:00:10.4]} 56. Rg1 {[%clk 0:00:23]} 56... Qf5+
{[%clk 0:00:10.5]} 57. Kb2 {[%clk 0:00:23.3]} 57... Ne4 {[%clk 0:00:10.3]} 58.
Rf1 {[%clk 0:00:23.7]} 58... Qg5 {[%clk 0:00:10]} 59. Rg1 {[%clk 0:00:21.5]}
59... Kc6 {[%clk 0:00:10]} 60. Qg2 {[%clk 0:00:20.2]} 60... Qe3 {[%clk
0:00:10.1]} 61. Rc1 {[%clk 0:00:20.7]} 61... Qf2+ {[%clk 0:00:07.2]} 62. Qxf2
{[%clk 0:00:21.4]} 62... gxf2 {[%clk 0:00:09.1]} 63. Rf1 {[%clk 0:00:21.9]}
63... Kb6 {[%clk 0:00:10.2]} 64. Ka3 {[%clk 0:00:22.6]} 64... Ka5 {[%clk
0:00:11.3]} 65. Kb2 {[%clk 0:00:21.7]} 65... b4 {[%clk 0:00:12.6]} 66. cxb4+
{[%clk 0:00:23]} 66... Kxb4 {[%clk 0:00:14.5]} 67. Kc2 {[%clk 0:00:24.2]} 67...
c3 {[%clk 0:00:15.9]} 68. Kd3 {[%clk 0:00:23.7]} 68... Kb3 {[%clk 0:00:16.7]}
69. Rb1+ {[%clk 0:00:24.6]} 69... Ka2 {[%clk 0:00:17.8]} 70. Rf1 {[%clk
0:00:24.9]} 70... Kb2 {[%clk 0:00:18.9]} 0-1